bitfinex/quotes_SOLUSD_20250107
["timestamp","ask_amount","ask_price","bid_price","bid_amount"]
[1736238242462,20.0,215.86,215.79,6.3509]
[1736238242670,8.99963535,215.85,215.79,6.3509]
[1736238243397,20.0,215.86,215.79,6.3509]
[1736238243571,8.99963535,215.85,215.79,6.3509]
[1736238244270,28.99963535,215.86,215.79,15.35053535]
[1736238244995,28.99963535,215.86,215.8,8.99963535]
[1736238245194,28.99963535,215.86,215.81,45.0]
[1736238245394,1.92,215.91,215.81,53.99963535]
[1736238245605,8.99963535,215.87,215.81,8.99963535]
[1736238245767,8.99963535,215.85,215.79,6.3509]
[1736238245970,8.99963535,215.84,215.79,6.3509]
[1736238248075,1.92,215.91,215.79,6.3509]
[1736238248076,20.0,215.9,215.79,6.3509]
[1736238248292,8.99963535,215.84,215.79,6.3509]
[1736238248677,8.99963535,215.83,215.79,6.3509]
[1736238248992,31.5794,215.9,215.79,6.3509]
[1736238248993,23.776884,215.89,215.79,6.3509]
[1736238249205,8.99963535,215.81,215.79,6.3509]
[1736238251088,20.0,215.86,215.79,6.3509]
[1736238251284,8.99963535,215.82,215.79,6.3509]
[1736238251686,8.99963535,215.82,215.79,51.3509]
[1736238253303,8.99963535,215.82,215.79,6.3509]
[1736238255681,8.99963535,215.83,215.79,6.3509]
[1736238256406,8.99963535,215.83,215.8,45.0]
[1736238257908,11.5805,215.88,215.8,45.0]
[1736238258093,8.99963535,215.83,215.8,45.0]
[1736238260608,11.5805,215.88,215.8,45.0]
[1736238260901,8.99963535,215.84,215.8,45.0]
[1736238261494,8.99963535,215.85,215.79,6.3509]
[1736238262100,8.99963535,215.86,215.79,15.35053535]
[1736238262907,8.99963535,215.86,215.8,8.99963535]
[1736238264405,8.99963535,215.86,215.81,45.0]
[1736238267407,20.0,215.89,215.8,8.99963535]
[1736238267614,8.99963535,215.86,215.8,8.99963535]
[1736238270420,8.99963535,215.86,215.83,45.0]
[1736238272308,20.0,215.89,215.83,45.0]
[1736238272618,8.99963535,215.84,215.79,6.3509]
[1736238272796,8.99963535,215.83,215.79,6.3509]
[1736238273001,8.99963535,215.82,215.79,6.3509]
[1736238273222,8.99963535,215.81,215.79,6.3509]
[1736238273924,31.58,215.89,215.79,6.3509]
[1736238274424,8.99963535,215.83,215.79,6.3509]
[1736238274627,8.99963535,215.82,215.79,6.3509]
[1736238275520,8.99963535,215.82,215.8,45.0]
[1736238278619,8.99963535,215.83,215.8,45.0]
[1736238279637,31.58,215.89,215.8,45.0]
[1736238279812,8.99963535,215.83,215.8,45.0]
[1736238281943,8.99963535,215.82,215.8,45.0]
[1736238282124,8.99963535,215.81,215.8,45.0]
[1736238282625,8.99963535,215.82,215.8,45.0]
[1736238286622,33.5,215.89,215.8,45.0]
[1736238286938,8.99963535,215.84,215.79,8.99963535]
[1736238287357,8.99963535,215.85,215.79,8.99963535]
[1736238288252,8.99963535,215.84,215.79,8.99963535]
[1736238288555,8.99963535,215.84,215.78,10.53453535]
[1736238289854,8.99963535,215.84,215.82,45.0]
[1736238290229,8.99963535,215.83,215.82,45.0]
[1736238292866,31.58,215.89,215.82,45.0]
[1736238293031,8.99963535,215.84,215.82,45.0]
[1736238294359,8.99963535,215.85,215.82,45.0]
[1736238295363,8.99963535,215.83,215.82,45.0]
[1736238296437,31.58,215.89,215.78,1.5349]
[1736238296642,8.99963535,215.83,215.78,1.5349]
[1736238298952,8.99963535,215.84,215.78,1.5349]
[1736238299360,8.99963535,215.84,215.82,45.0]
[1736238302174,8.99963535,215.83,215.82,45.0]
[1736238302339,8.99963535,215.83,215.73,15.52692226]
[1736238302545,8.99963535,215.78,215.73,15.52692226]
[1736238302766,23.776884,215.88,215.73,8.2438]
[1736238302767,8.99963535,215.75,215.73,8.2438]
[1736238303066,8.99963535,215.74,215.73,1.6514]
[1736238303255,8.99963535,215.74,215.7,7.28312226]
[1736238303447,8.99963535,215.72,215.7,7.28312226]
[1736238303842,8.99963535,215.72,215.68,8.1575]
[1736238304978,8.99963535,215.73,215.68,8.1575]
[1736238305345,8.99963535,215.73,215.7,45.0]
[1736238305789,8.99963535,215.73,215.68,8.1575]
[1736238306564,8.99963535,215.72,215.68,8.1575]
[1736238306762,8.99963535,215.71,215.68,1.6514]
[1736238307053,8.99963535,215.72,215.68,1.6514]
[1736238308550,8.99963535,215.7,215.64,8.99963535]
[1736238308860,8.99963535,215.7,215.68,45.0]
[1736238309392,8.99963535,215.71,215.68,45.0]
[1736238311391,23.776884,215.79,215.68,45.0]
[1736238311598,8.99963535,215.72,215.68,45.0]
[1736238321219,8.99963535,215.73,215.68,45.0]
[1736238325205,23.776884,215.79,215.68,45.0]
[1736238325387,20.0,215.76,215.68,45.0]
[1736238325587,8.99963535,215.73,215.68,45.0]
[1736238328108,8.99963535,215.72,215.68,45.0]
[1736238336810,8.99963535,215.72,215.67,8.99963535]
[1736238337109,20.0,215.77,215.71,8.99963535]
[1736238337412,28.99963535,215.77,215.71,8.99963535]
[1736238337931,11.5831,215.84,215.73,8.99963535]
[1736238338211,8.99963535,215.79,215.73,8.99963535]
[1736238339329,20.0,215.8,215.73,8.99963535]
[1736238339530,8.99963535,215.79,215.73,8.99963535]
[1736238339923,8.99963535,215.79,215.73,53.99963535]
[1736238342418,11.5831,215.84,215.75,8.99963535]
[1736238342597,8.99963535,215.83,215.77,8.99963535]
[1736238343035,8.99963535,215.82,215.76,8.99963535]
[1736238343697,8.99963535,215.82,215.75,1.6218]
[1736238343698,8.99963535,215.8,215.75,1.6218]
[1736238344420,8.99963535,215.79,215.75,1.6218]
[1736238345523,8.99963535,215.79,215.75,46.6218]
[1736238348340,31.5824,215.85,215.75,46.6218]
[1736238348545,8.99963535,215.82,215.76,8.99963535]
[1736238348752,31.5824,215.85,215.76,8.99963535]
[1736238349042,8.99963535,215.82,215.76,8.99963535]
[1736238349623,8.99963535,215.83,215.77,8.99963535]
[1736238350746,21.92,215.86,215.78,8.99963535]
[1736238350747,8.99963535,215.84,215.78,8.99963535]
[1736238351121,8.99963535,215.85,215.79,8.99963535]
[1736238352027,8.99963535,215.85,215.79,53.99963535]
[1736238352354,8.99963535,215.88,215.81,8.99963535]
[1736238352694,8.99963535,215.88,215.82,8.99963535]
[1736238353060,8.99963535,215.89,215.83,8.99963535]
[1736238353458,8.99963535,215.88,215.82,8.99963535]
[1736238355053,8.99963535,215.87,215.81,10.52493535]
[1736238355559,8.99963535,215.86,215.81,1.5253]
[1736238355759,8.99963535,215.86,215.83,45.0]
[1736238357137,8.99963535,215.85,215.81,1.5253]
[1736238360052,8.99963535,215.85,215.81,46.5253]
[1736238360557,8.99963535,215.85,215.81,1.5253]
[1736238361327,8.99963535,215.82,215.81,1.5253]
[1736238361527,8.99963535,215.82,215.77,6.4177]
[1736238363568,8.99963535,215.82,215.79,45.0]
[1736238366053,8.99963535,215.83,215.79,45.0]
[1736238369041,8.99963535,215.82,215.79,45.0]
[1736238371358,8.99963535,215.81,215.79,45.0]
[1736238371745,8.99963535,215.82,215.79,45.0]
[1736238371942,8.99963535,215.81,215.79,45.0]
[1736238375261,8.99963535,215.82,215.77,6.4177]
[1736238376344,8.99963535,215.81,215.77,6.4177]
[1736238376963,8.99963535,215.8,215.77,6.4177]
[1736238377259,8.99963535,215.81,215.77,6.4177]
[1736238378254,8.99963535,215.81,215.77,51.4177]
[1736238381043,8.99963535,215.82,215.77,51.4177]
[1736238382058,8.99963535,215.8,215.77,51.4177]
[1736238382259,8.99963535,215.82,215.77,51.4177]
[1736238385383,8.99963535,215.81,215.77,51.4177]
[1736238385671,8.99963535,215.82,215.77,51.4177]
[1736238385874,8.99963535,215.81,215.77,51.4177]
[1736238391155,8.99963535,215.81,215.77,45.0]
[1736238391355,8.99963535,215.8,215.77,45.0]
[1736238393480,8.99963535,215.79,215.77,45.0]
[1736238393683,8.99963535,215.78,215.72,6.0427]
[1736238393894,8.99963535,215.76,215.7,1.5211]
[1736238394055,8.99963535,215.75,215.7,1.5211]
[1736238394986,8.99963535,215.76,215.7,10.52073535]
[1736238395468,8.99963535,215.77,215.71,8.99963535]
[1736238396183,20.0,215.82,215.72,8.99963535]
[1736238396387,8.99963535,215.79,215.73,8.99963535]
[1736238396588,8.99963535,215.78,215.73,45.0]
[1736238400662,8.99963535,215.78,215.72,8.99963535]
[1736238401088,8.99963535,215.77,215.71,8.99963535]
[1736238403886,8.99963535,215.77,215.73,45.0]
[1736238408603,8.99963535,215.76,215.73,45.0]
[1736238409392,35.361084,215.81,215.73,45.0]
[1736238409604,8.99963535,215.77,215.73,45.0]
[1736238410831,11.5842,215.81,215.73,45.0]
[1736238411123,8.99963535,215.77,215.73,45.0]
[1736238412603,11.5819,215.86,215.75,8.99963535]
[1736238412895,8.99963535,215.81,215.75,8.99963535]
[1736238415208,1.92,215.85,215.75,8.99963535]
[1736238415390,8.99963535,215.81,215.74,8.99963535]
[1736238415710,8.99963535,215.81,215.76,45.0]
[1736238418109,8.99963535,215.8,215.76,45.0]
[1736238418411,8.99963535,215.79,215.76,45.0]
[1736238419801,8.99963535,215.8,215.76,45.0]
[1736238424311,8.99963535,215.8,215.74,8.99963535]
[1736238426224,8.99963535,215.81,215.75,8.99963535]
[1736238426515,6.5265,215.9,215.77,8.99963535]
[1736238426723,8.99963535,215.83,215.77,8.99963535]
[1736238427414,8.99963535,215.83,215.77,53.99963535]
[1736238428317,8.99963535,215.82,215.77,45.0]
[1736238428515,8.99963535,215.81,215.77,45.0]
[1736238431923,8.99963535,215.81,215.76,1.5727]
[1736238433435,8.99963535,215.8,215.76,1.5727]
[1736238434917,8.99963535,215.8,215.76,46.5727]
[1736238435127,8.99963535,215.81,215.76,46.5727]
[1736238438102,11.5817,215.86,215.76,1.5727]
[1736238438432,11.5817,215.86,215.78,8.99963535]
[1736238438632,8.99963535,215.84,215.78,8.99963535]
[1736238438803,11.5817,215.86,215.78,8.99963535]
[1736238439004,8.99963535,215.84,215.78,8.99963535]
[1736238439200,8.99963535,215.85,215.78,8.99963535]
[1736238440135,8.99963535,215.85,215.79,8.99963535]
[1736238440440,8.99963535,215.85,215.78,8.99963535]
[1736238440653,8.99963535,215.84,215.78,8.99963535]
[1736238441232,8.99963535,215.84,215.79,45.0]
[1736238446236,8.99963535,215.84,215.78,8.99963535]
[1736238448141,8.99963535,215.84,215.79,8.99963535]
[1736238449146,8.99963535,215.84,215.79,53.99963535]
[1736238456152,8.99963535,215.84,215.79,45.0]
[1736238456851,8.99963535,215.83,215.79,45.0]
[1736238457018,8.99963535,215.84,215.79,45.0]
[1736238458250,8.99963535,215.83,215.79,45.0]
[1736238458717,8.99963535,215.84,215.79,45.0]
[1736238459451,8.99963535,215.84,215.77,8.99963535]
[1736238461349,8.99963535,215.83,215.77,8.99963535]
[1736238462455,8.99963535,215.83,215.79,45.0]
[1736238467274,8.99963535,215.84,215.79,45.0]
[1736238469455,8.99963535,215.85,215.79,45.0]
[1736238469657,8.99963535,215.85,215.78,8.99963535]
[1736238470882,8.99963535,215.86,215.79,8.99963535]
[1736238472876,8.99963535,215.86,215.8,45.0]
[1736238474882,8.99963535,215.85,215.8,45.0]
[1736238478060,1.92,215.92,215.81,8.99963535]
[1736238478377,8.99963535,215.84,215.79,6.3277]
[1736238478563,8.99963535,215.85,215.79,15.32733535]
[1736238480980,8.99963535,215.85,215.81,45.0]
[1736238481179,1.92,215.91,215.81,53.99963535]
[1736238481180,20.0,215.89,215.81,53.99963535]
[1736238481381,8.99963535,215.87,215.81,53.99963535]
[1736238481581,8.99963535,215.86,215.81,45.0]
[1736238481765,8.99963535,215.85,215.81,45.0]
[1736238482086,20.0,215.89,215.81,45.0]
[1736238482293,8.99963535,215.85,215.81,45.0]
[1736238482582,8.99963535,215.86,215.79,15.32733535]
[1736238483786,8.99963535,215.86,215.79,6.3277]
[1736238483969,8.99963535,215.86,215.79,15.32733535]
[1736238484160,8.99963535,215.86,215.79,6.3277]
[1736238484362,8.99963535,215.86,215.79,15.32733535]
[1736238485687,8.99963535,215.87,215.82,45.0]
[1736238486376,8.99963535,215.86,215.82,45.0]
[1736238488986,20.0,215.89,215.82,45.0]
[1736238489207,8.99963535,215.86,215.82,45.0]
[1736238490404,20.0,215.89,215.82,45.0]
[1736238490607,8.99963535,215.86,215.82,45.0]
[1736238492003,8.99963535,215.85,215.82,45.0]
[1736238493889,8.99963535,215.85,215.79,15.32733535]
[1736238494372,8.99963535,215.86,215.79,15.32733535]
[1736238496885,8.99963535,215.86,215.81,45.0]
[1736238500016,8.99963535,215.87,215.8,8.99963535]
[1736238503103,8.99963535,215.87,215.82,45.0]
[1736238504612,17.67729508,215.95,215.87,6.1397]
[1736238504913,7.27657676,215.95,215.91,8.99963535]
[1736238505124,7.27657676,215.95,215.92,8.99963535]
[1736238505414,7.27657676,215.95,215.93,8.99963535]
[1736238505617,7.27657676,215.95,215.92,8.99963535]
[1736238506418,8.99963535,215.98,215.92,8.99963535]
[1736238507699,8.99963535,215.98,215.93,45.0]
[1736238510697,8.99963535,215.97,215.93,45.0]
[1736238516128,8.99963535,215.98,215.93,45.0]
[1736238516996,23.776884,216.03,215.93,45.0]
[1736238517423,8.99963535,215.98,215.93,45.0]
[1736238519127,23.776884,216.03,215.93,45.0]
[1736238519326,8.99963535,215.98,215.93,45.0]
[1736238522021,8.99963535,215.98,215.92,8.99963535]
[1736238523131,8.99963535,215.99,215.93,8.99963535]
[1736238523345,23.776884,216.03,215.92,8.99963535]
[1736238523557,8.99963535,215.98,215.92,8.99963535]
[1736238524912,1.5265,216.05,215.96,45.0]
[1736238525113,11.5702,216.08,215.97,8.99963535]
[1736238525419,8.99963535,216.03,215.97,8.99963535]
[1736238526113,11.5702,216.08,215.94,6.4659]
[1736238526317,8.99963535,216.03,215.97,8.99963535]
[1736238526519,20.0,216.08,215.97,10.59833535]
[1736238526730,8.99963535,216.04,215.98,8.99963535]
[1736238527547,1.5253,216.1,215.98,8.99963535]
[1736238527849,8.99963535,216.04,215.98,8.99963535]
[1736238528059,20.0,216.06,215.98,8.99963535]
[1736238528254,8.99963535,216.04,215.98,8.99963535]
[1736238528441,8.3112,216.11,215.98,8.99963535]
[1736238528442,82.3,216.14,216.0,8.99963535]
[1736238528652,8.99963535,216.06,216.0,8.99963535]
[1736238529031,8.99963535,216.06,216.0,53.99963535]
[1736238529455,8.99963535,216.06,216.0,8.99963535]
[1736238530462,23.776884,216.11,216.0,8.99963535]
[1736238530629,8.99963535,216.06,216.0,8.99963535]
[1736238532064,8.99963535,216.07,216.0,8.99963535]
[1736238532358,8.99963535,216.07,216.01,8.99963535]
[1736238532524,8.99963535,216.07,216.05,45.0]
[1736238535555,8.99963535,216.07,216.01,8.99963535]
[1736238536265,23.776884,216.11,216.01,8.99963535]
[1736238536555,8.99963535,216.07,216.01,8.99963535]
[1736238537368,8.99963535,216.03,215.97,1.5987]
[1736238537551,8.99963535,216.02,215.97,10.59833535]
[1736238537857,8.99963535,216.03,215.97,10.59833535]
[1736238538358,8.99963535,216.04,215.98,8.99963535]
[1736238538661,8.99963535,216.04,216.01,45.0]
[1736238539656,23.776884,216.08,216.01,45.0]
[1736238539844,8.99963535,216.05,216.01,45.0]
[1736238540567,8.99963535,216.06,216.01,45.0]
[1736238542061,8.99963535,216.05,216.01,45.0]
[1736238542634,0.33198,216.04,216.01,45.0]
[1736238560999,0.33198,216.04,216.01,53.99963535]
[1736238561285,0.33198,216.04,216.03,8.99963535]
[1736238562691,0.33198,216.04,216.03,11.22522169]
[1736238562990,0.33198,216.04,216.03,13.49723991]
[1736238563187,0.33198,216.04,216.03,11.27165357]
[1736238563495,0.33198,216.04,216.03,1.5778]
[1736238563668,0.33198,216.04,216.03,10.57743535]
[1736238564168,0.33198,216.04,216.03,55.57743535]
[1736238564391,0.33198,216.04,216.03,57.8030355]
[1736238564763,0.33198,216.04,216.03,48.80340015]
[1736238564971,0.33198,216.04,216.03,57.8030355]
[1736238565464,0.33198,216.04,216.03,46.5778]
[1736238565684,0.33198,216.04,216.0,15.26523535]
[1736238565870,0.33198,216.04,216.0,6.2656]
[1736238566073,0.33198,216.04,216.0,15.26523535]
[1736238566692,0.33198,216.04,216.01,2.22837322]
[1736238567879,0.33198,216.04,216.0,15.26523535]
[1736238568581,0.33198,216.04,216.0,60.26523535]
[1736238569170,0.33198,216.04,216.01,2.23086742]
[1736238569796,0.33198,216.04,216.02,2.23086742]
[1736238570371,0.33198,216.04,216.0,15.26523535]
[1736238571300,0.33198,216.04,215.98,1.6053]
[1736238571476,0.33198,216.04,216.0,8.99963535]
[1736238572301,0.33198,216.04,216.0,53.99963535]
[1736238572798,0.33198,216.04,216.0,8.99963535]
[1736238575904,0.33198,216.04,216.02,45.0]
[1736238578116,9.33161535,216.04,216.02,45.0]
[1736238579490,9.33161535,216.04,215.99,8.99963535]
[1736238579833,0.33198,216.04,215.99,8.99963535]
[1736238582505,0.33198,216.04,215.99,53.99963535]
[1736238586417,0.33198,216.04,216.0,8.99963535]
[1736238588602,0.33198,216.04,215.99,53.99963535]
[1736238589025,0.33198,216.04,215.99,8.99963535]
[1736238590121,8.99963535,216.0,215.98,7.22293229]
[1736238590333,8.99963535,215.99,215.98,7.22293229]
[1736238590901,8.99963535,215.99,215.95,7.22293229]
[1736238591204,36.3305214,216.04,215.95,7.22293229]
[1736238591205,8.99963535,215.97,215.95,7.22293229]
[1736238592834,8.99963535,215.97,215.94,7.22293229]
[1736238593625,23.776884,216.03,215.94,7.22293229]
[1736238593626,8.99963535,215.96,215.94,7.22293229]
[1736238593832,8.99963535,215.95,215.94,7.22293229]
[1736238594733,8.99963535,215.95,215.93,7.22293229]
[1736238594932,8.99963535,215.94,215.93,7.22293229]
[1736238596410,8.99963535,215.94,215.88,7.22293229]
[1736238596633,8.99963535,215.92,215.88,7.22293229]
[1736238596835,8.99963535,215.92,215.86,16.22256764]
[1736238597128,8.99963535,215.91,215.86,7.22293229]
[1736238597356,8.99963535,215.9,215.86,7.22293229]
[1736238597508,8.99963535,215.89,215.86,7.22293229]
[1736238597910,8.99963535,215.89,215.85,36.11466145]
[1736238598109,8.99963535,215.9,215.85,36.11466145]
[1736238599034,8.99963535,215.9,215.84,16.22256764]
[1736238600038,8.99963535,215.89,215.84,7.22293229]
[1736238600712,8.99963535,215.9,215.84,16.22256764]
[1736238600913,8.99963535,215.91,215.85,8.99963535]
[1736238602937,8.99963535,215.9,215.84,8.99963535]
[1736238604054,8.99963535,215.9,215.83,10.52083535]
[1736238604367,8.99963535,215.87,215.82,7.22293229]
[1736238604524,8.99963535,215.85,215.82,7.22293229]
[1736238605539,8.99963535,215.85,215.79,16.22256764]
[1736238606258,8.99963535,215.85,215.79,8.99963535]
[1736238607261,21.92,215.91,215.82,8.99963535]
[1736238607470,8.99963535,215.9,215.84,8.99963535]
[1736238607757,30.91963535,215.91,215.85,8.99963535]
[1736238607959,6.0547,215.96,215.88,8.99963535]
[1736238608166,8.99963535,215.93,215.87,8.99963535]
[1736238609449,6.0547,215.96,215.87,8.99963535]
[1736238609659,1.92,215.97,215.9,8.99963535]
[1736238609824,8.99963535,215.97,215.86,0.69465386]
[1736238610025,23.776884,216.0,215.86,0.69465386]
[1736238610221,8.99963535,215.98,215.92,8.99963535]
[1736238610455,8.99963535,215.97,215.91,8.99963535]
[1736238611260,8.99963535,215.98,215.92,8.99963535]
[1736238612378,17.9239,216.02,215.92,8.99963535]
[1736238612648,8.99963535,216.0,215.94,8.99963535]
[1736238612849,8.99963535,216.0,215.94,53.99963535]
[1736238613353,8.99963535,216.0,215.94,8.99963535]
[1736238614683,8.99963535,215.99,215.93,8.99963535]
[1736238614970,20.0,216.01,215.94,8.99963535]
[1736238615346,8.99963535,215.99,215.93,8.99963535]
[1736238615565,20.0,216.02,215.93,8.99963535]
[1736238615772,8.99963535,215.99,215.93,8.99963535]
[1736238615968,8.99963535,215.99,215.92,8.99963535]
[1736238616175,8.99963535,215.98,215.92,45.0]
[1736238616467,8.99963535,215.97,215.92,45.0]
[1736238617272,20.0,216.0,215.92,53.99963535]
[1736238617474,13.099,216.03,215.93,8.99963535]
[1736238617769,8.99963535,216.01,215.95,8.99963535]
[1736238618144,8.99963535,216.02,215.96,8.99963535]
[1736238618465,8.99963535,216.01,215.95,8.99963535]
[1736238619279,0.33198,216.04,215.96,8.99963535]
[1736238619487,8.99963535,216.02,215.95,9.69407886]
[1736238619668,8.99963535,216.03,215.96,8.99963535]
[1736238620485,8.99963535,216.02,215.96,8.99963535]
[1736238620788,8.99963535,216.02,215.96,53.99963535]
[1736238622479,8.99963535,216.02,215.96,45.0]
[1736238625358,20.33198,216.04,215.97,0.59852989]
[1736238625560,0.33198,216.04,215.97,10.29255121]
[1736238625756,0.33198,216.04,215.99,8.99963535]
[1736238626155,0.33198,216.04,216.0,0.59844676]
[1736238628777,0.33198,216.04,216.0,45.59844676]
[1736238628982,0.33198,216.04,216.01,8.99963535]
[1736238629186,0.33198,216.04,216.01,9.88621774]
[1736238629484,0.33198,216.04,216.02,0.88654134]
[1736238632571,0.33198,216.04,216.02,9.88617669]
[1736238633070,0.33198,216.04,216.03,0.88650031]
[1736238633466,0.33198,216.04,216.03,9.88613566]
[1736238633890,0.33198,216.04,216.03,16.06323566]
[1736238635378,0.33198,216.04,216.03,61.06323566]
[1736238637396,0.33198,216.04,216.03,7.06360031]
[1736238640000,0.33198,216.04,216.01,28.99963535]
[1736238640194,0.33198,216.04,216.01,20.0]
[1736238640374,0.33198,216.04,216.01,73.99963535]
[1736238640572,0.33198,216.04,216.02,8.99963535]
[1736238641192,0.33198,216.04,216.01,73.99963535]
[1736238642306,0.33198,216.04,216.02,8.99963535]
[1736238642802,0.33198,216.04,216.03,8.99963535]
[1736238643204,0.33198,216.04,216.03,9.88613566]
[1736238643688,0.33198,216.04,216.03,9.56534421]
[1736238644283,0.33198,216.04,216.03,0.56570886]
[1736238644491,0.33198,216.04,216.03,0.56570827]
[1736238645099,0.33198,216.04,216.03,9.56534362]
[1736238645308,0.33198,216.04,216.03,54.56534362]
[1736238646304,0.33198,216.04,216.03,45.56570827]
[1736238650702,0.33198,216.04,216.03,0.56570827]
[1736238650907,0.33198,216.04,216.03,20.56570827]
[1736238651977,0.33198,216.04,216.03,0.56570827]
[1736238652180,0.33198,216.04,216.03,20.56570827]
[1736238653707,0.33198,216.04,216.03,65.56570827]
[1736238657606,0.33198,216.04,216.03,20.56570827]
[1736238658508,9.33161535,216.04,216.03,0.56570827]
[1736238659096,0.33198,216.04,216.03,0.56570827]
[1736238659614,0.33198,216.04,216.03,20.56570827]
[1736238660111,0.33198,216.04,216.03,20.0]
[1736238660819,0.33198,216.04,216.03,65.0]
[1736238663417,0.33198,216.04,216.03,65.34781627]
[1736238663720,0.33198,216.04,216.03,45.34781627]
[1736238664505,0.33198,216.04,216.03,70.19532588]
[1736238664703,0.33198,216.04,216.03,79.19496123]
[1736238666717,0.33198,216.04,216.03,78.97254475]
[1736238667234,0.33198,216.04,216.03,69.9729094]
[1736238667426,0.33198,216.04,216.03,78.97254475]
[1736238667917,0.33198,216.04,216.03,78.92425711]
[1736238668126,0.33198,216.04,216.03,78.84714496]
[1736238668421,0.33198,216.04,216.03,78.92741548]
[1736238668626,0.33198,216.04,216.03,78.84714496]
[1736238668929,0.33198,216.04,216.03,78.9080956]
[1736238669434,0.33198,216.04,216.03,78.84714496]
[1736238669734,0.33198,216.04,216.03,86.07007725]
[1736238672747,0.33198,216.04,216.03,76.25079629]
[1736238673053,0.33198,216.04,216.03,9.16293229]
[1736238673553,0.33198,216.04,216.03,7.22293229]
[1736238674158,0.33198,216.04,216.02,23.776884]
[1736238676047,0.33198,216.04,216.03,45.0]
[1736238677856,0.33198,216.04,216.03,52.22293229]
[1736238679139,0.33198,216.04,216.03,61.22256764]
[1736238679343,0.33198,216.04,216.03,52.22293229]
[1736238682040,0.33198,216.04,216.03,7.22293229]
[1736238682641,0.33198,216.04,216.02,47.22238393]
[1736238684953,0.33198,216.04,216.03,45.0]
[1736238691526,0.33198,216.04,216.03,78.84714707]
[1736238697477,0.33198,216.04,216.03,69.84751172]
[1736238697622,0.33198,216.04,216.03,78.84714707]
[1736238697820,0.33198,216.04,216.03,79.98749935]
[1736238698051,0.33198,216.04,216.03,100.07040623]
[1736238698362,0.33198,216.04,216.03,98.11040623]
[1736238698646,0.33198,216.04,216.03,112.65548386]
[1736238699317,0.33198,216.04,216.03,69.027864]
[1736238700361,0.33198,216.04,216.03,78.02749935]
[1736238700720,0.33198,216.04,216.03,92.57257698]
[1736238701137,0.33198,216.04,216.03,78.15298935]
[1736238701345,0.33198,216.04,216.03,78.02749935]
[1736238702322,0.33198,216.04,216.03,69.153354]
[1736238702655,0.33198,216.04,216.03,78.15298935]
[1736238703155,0.33198,216.04,216.03,78.84706734]
[1736238703779,8.99963535,216.11,216.04,24.027864]
[1736238703962,8.99963535,216.11,216.05,8.99963535]
[1736238704652,8.99963535,216.11,216.07,7.27060825]
[1736238705158,8.99963535,216.1,216.07,7.27060825]
[1736238706279,8.99963535,216.11,216.07,7.27060825]
[1736238706482,8.99963535,216.12,216.07,7.27060825]
[1736238706973,8.99963535,216.12,216.07,52.27060825]
[1736238709565,8.99963535,216.12,216.09,0.45794868]
[1736238711674,8.99963535,216.13,216.09,0.45794868]
[1736238714571,8.94392345,216.13,216.09,0.45794868]
[1736238716494,8.94392345,216.13,216.09,45.45794868]
[1736238719490,8.94392345,216.13,216.09,0.45794868]
[1736238722514,8.94392345,216.13,216.09,45.45794868]
[1736238723788,8.99963535,216.12,216.09,45.45794868]
[1736238724091,8.99963535,216.1,216.09,0.45794868]
[1736238728594,8.99963535,216.12,216.09,0.45794868]
[1736238729970,8.99963535,216.13,216.09,0.45794868]
[1736238730372,8.99963535,216.14,216.09,0.45794868]
[1736238730579,20.0,216.16,216.09,0.45794868]
[1736238730894,8.99963535,216.14,216.09,0.45794868]
[1736238731899,8.99963535,216.14,216.09,45.45794868]
[1736238732894,20.0,216.16,216.09,45.45794868]
[1736238732895,8.99963535,216.13,216.09,45.45794868]
[1736238734801,8.99963535,216.12,216.09,45.45794868]
[1736238734995,8.99963535,216.11,216.09,45.45794868]
[1736238737997,8.99963535,216.11,216.09,0.45794868]
[1736238739186,20.0,216.16,216.09,0.45794868]
[1736238739406,8.99963535,216.11,216.09,0.45794868]
[1736238739775,8.99963535,216.12,216.09,0.45794868]
[1736238740802,8.99963535,216.12,216.09,45.45794868]
[1736238748428,8.99963535,216.11,216.09,45.45794868]
[1736238749726,8.99963535,216.12,216.09,45.45794868]
[1736238749915,20.0,216.16,216.09,45.45794868]
[1736238750302,8.99963535,216.12,216.09,45.45794868]
[1736238753008,8.99963535,216.12,216.09,52.72855693]
[1736238754325,11.5639,216.19,216.09,52.72855693]
[1736238754506,11.564,216.38,216.09,52.72855693]